fUST/lending_fUST_20250226
["ID","MTS","AMOUNT","RATE_DAILY","PERIOD"]
[354461843,1740519088542,-330.13057806,0.00050684,120]
[354461844,1740519088553,-2874.66,0.00050684,120]
[354461845,1740519088562,-500.0,0.00050684,120]
[354461846,1740519088572,-1539.84,0.00050684,120]
[354461847,1740519088581,-500.0,0.00050684,120]
[354461848,1740519088591,-500.0,0.00050684,120]
[354461849,1740519088600,-1372.6,0.00050684,120]
[354461850,1740519088610,-500.0,0.00050684,120]
[354461851,1740519088619,-500.0,0.00050684,120]
[354461852,1740519088632,-2167.36,0.00050684,120]
[354461853,1740519088642,-511.83015939,0.00050684,120]
[354461854,1740519088651,-500.0,0.00050684,120]
[354461855,1740519088661,-500.0,0.00050684,120]
[354461856,1740519088671,-1031.41,0.00050684,120]
[354461857,1740519088680,-1128.56,0.00050684,120]
[354461858,1740519088691,-500.0,0.00050684,120]
[354461859,1740519088702,-847.51,0.00050684,120]
[354461860,1740519088712,-1010.46,0.00050684,120]
[354461861,1740519088721,-500.0,0.00050684,120]
[354461862,1740519088731,-3061.97,0.00050684,120]
[354461863,1740519088740,-1465.92,0.00050684,120]
[354461864,1740519088749,-500.0,0.00050684,120]
[354461865,1740519088758,-500.0,0.00050684,120]
[354461866,1740519088768,-500.0,0.00050684,120]
[354461867,1740519088777,-4164.0,0.00050684,120]
[354461868,1740519088786,-500.0,0.00050684,120]
[354461869,1740519088795,-825.18,0.00050684,120]
[354461870,1740519088806,-500.0,0.00050684,120]
[354461871,1740519088816,-500.0,0.00050684,120]
[354461872,1740519088826,-500.0,0.00050684,120]
[354461873,1740519088837,-500.0,0.00050684,120]
[354461874,1740519088848,-500.0,0.00050684,120]
[354461875,1740519088857,-500.0,0.00050684,120]
[354461876,1740519088867,-652.14,0.00050684,120]
[354461877,1740519088877,-2548.62,0.00050684,120]
[354461878,1740519088887,-500.0,0.00050684,120]
[354461879,1740519088896,-500.0,0.00050684,120]
[354461880,1740519088906,-552.6,0.00050684,120]
[354461881,1740519088915,-336.44272036,0.00050684,120]
[354461882,1740519088923,-500.0,0.00050684,120]
[354461883,1740519088933,-1272.0,0.00050684,120]
[354461884,1740519088943,-2086.99,0.00050684,120]
[354461885,1740519088952,-500.0,0.00050684,120]
[354461886,1740519088961,-1922.37,0.00050684,120]
[354461887,1740519088970,-500.0,0.00050684,120]
[354461888,1740519088980,-500.0,0.00050684,120]
[354461889,1740519088989,-901.29,0.00050684,120]
[354461890,1740519088999,-518.8369307,0.00050684,120]
[354461891,1740519089008,-575.98,0.00050684,120]
[354461892,1740519089017,-652.73,0.00050684,120]
[354461893,1740519089027,-500.0,0.00050684,120]
[354461894,1740519089036,-500.0,0.00050684,120]
[354461895,1740519089046,-1328.81,0.00050684,120]
[354461896,1740519089055,-500.0,0.00050684,120]
[354461897,1740519089068,-1309.55,0.00050684,120]
[354461898,1740519089077,-1000.0,0.00050684,120]
[354461899,1740519089088,-500.0,0.00050684,120]
[354461900,1740519089097,-805.37,0.00050684,45]
[354461901,1740519089107,-500.0,0.00050684,120]
[354461902,1740519089116,-500.0,0.00050684,120]
[354461903,1740519089128,-500.0,0.00050684,120]
[354461904,1740519089139,-500.0,0.00050684,120]
[354461905,1740519089149,-1110.68,0.00050684,120]
[354461906,1740519089158,-500.0,0.00050684,120]
[354461907,1740519089167,-500.0,0.00050684,120]
[354461908,1740519089177,-663.85,0.00050684,120]
[354461909,1740519089186,-515.11960437,0.00050684,120]
[354461910,1740519089197,-500.0,0.00050684,120]
[354461911,1740519089206,-500.0,0.00050684,120]
[354461912,1740519089216,-500.0,0.00050684,120]
[354461913,1740519089225,-500.0,0.00050684,120]
[354461914,1740519089234,-578.91155979,0.00050684,120]
[354461915,1740519089243,-500.0,0.00050684,120]
[354461916,1740519089253,-1041.62,0.00050684,120]
[354461917,1740519089262,-500.0,0.00050684,120]
[354461918,1740519089272,-2860.45,0.00050684,120]
[354461919,1740519089281,-1053.83,0.00050684,120]
[354461920,1740519089291,-3100.63,0.00050684,120]
[354461921,1740519089301,-949.71,0.00050684,120]
[354461922,1740519089311,-520.84,0.00050684,120]
[354461923,1740519089320,-678.83,0.00050684,120]
[354461924,1740519089329,-562.27,0.00050684,120]
[354461925,1740519089339,-500.0,0.00050684,120]
[354461926,1740519089349,-794.87,0.00050684,120]
[354461927,1740519089358,-396.80034712,0.00050684,120]
[354461928,1740519089368,-150.86658108,0.00050684,120]
[354461929,1740519089377,-500.0,0.00050684,120]
[354461930,1740519089387,-885.27,0.00050684,120]
[354461931,1740519089397,-789.88,0.00050684,120]
[354461932,1740519089406,-664.89,0.00050684,120]
[354461933,1740519089416,-2502.34,0.00050684,120]
[354461934,1740519089425,-2491.31,0.00050684,120]
[354461935,1740519089434,-2347.69,0.00050684,120]
[354461936,1740519089445,-815.51,0.00050684,120]
[354461937,1740519089454,-500.0,0.00050684,120]
[354461938,1740519089464,-500.0,0.00050684,120]
[354461939,1740519089473,-628.59,0.00050684,120]
[354461940,1740519089483,-509.07950818,0.00050684,120]
[354461941,1740519089493,-5346.16,0.00050684,120]
[354461942,1740519089502,-500.0,0.00050684,120]
[354461943,1740519089511,-2251.12,0.00050684,120]
[354461944,1740519089520,-500.0,0.00050684,120]
[354461945,1740519089529,-1298.15,0.00050684,120]
[354461946,1740519089539,-500.0,0.00050684,120]
[354461947,1740519089548,-294.21680451,0.00050684,120]
[354461948,1740519089557,-500.0,0.00050684,120]
[354461949,1740519089566,-507.52571748,0.00050684,120]
[354461950,1740519089575,-500.0,0.00050684,120]
[354461951,1740519089584,-385.57001174,0.00050684,120]
[354461952,1740519089593,-500.0,0.00050684,120]
[354461953,1740519089602,-500.0,0.00050684,120]
[354461954,1740519089611,-500.0,0.00050684,120]
[354461955,1740519089621,-914.32,0.00050684,120]
[354461956,1740519089633,-500.0,0.00050684,120]
[354461957,1740519089642,-733.63,0.00050684,120]
[354461958,1740519089651,-259.22926576,0.00050684,120]
[354461959,1740519089661,-500.0,0.00050684,120]
[354461960,1740519089671,-618.09,0.00050684,120]
[354461961,1740519089681,-500.0,0.00050684,120]
[354461962,1740519089692,-500.0,0.00050684,120]
[354461963,1740519089702,-500.0,0.00050684,120]
[354461964,1740519089711,-500.0,0.00050684,120]
[354461965,1740519089721,-500.0,0.00050684,120]
[354461966,1740519089730,-500.0,0.00050684,120]
[354461967,1740519089740,-500.0,0.00050684,120]
[354461968,1740519089749,-500.0,0.00050684,120]
[354461969,1740519089759,-1870.42,0.00050684,120]
[354461970,1740519089768,-619.44253994,0.00050684,120]
[354461971,1740519089778,-781.11,0.00050684,120]
[354461972,1740519089787,-500.0,0.00050684,120]
[354461973,1740519089797,-761.0,0.00050684,120]
[354461974,1740519089807,-735.47,0.00050684,120]
[354461975,1740519089817,-650.54,0.00050684,120]
[354461976,1740519089826,-500.0,0.00050684,120]
[354461977,1740519089835,-500.0,0.00050684,120]
[354461978,1740519089845,-500.0,0.00050684,120]
[354461979,1740519089855,-500.0,0.00050684,120]
[354461980,1740519089864,-1268.37,0.00050684,120]
[354461981,1740519089873,-500.0,0.00050684,120]
[354461982,1740519089883,-500.0,0.00050684,120]
[354461983,1740519089891,-1305.23,0.00050684,120]
[354461984,1740519089901,-708.84,0.00050684,120]
[354461985,1740519089910,-6800.06,0.00050684,120]
[354461986,1740519089920,-500.0,0.00050684,120]
[354461987,1740519089929,-1191.96,0.00050684,120]
[354461988,1740519089939,-500.0,0.00050684,120]
[354461989,1740519089950,-12312.64,0.00050684,3]
[354461990,1740519089959,-500.0,0.00050684,120]
[354461991,1740519089969,-500.0,0.00050684,120]
[354461992,1740519089979,-500.0,0.00050684,120]
[354461993,1740519089988,-509.2477232,0.00050684,120]
[354461994,1740519089997,-634.80570118,0.00050684,2]
[354461995,1740519090007,-500.0,0.00050684,120]
[354461996,1740519090016,-500.0,0.00050684,120]
[354461997,1740519090026,-500.0,0.00050684,120]
[354461998,1740519090035,-555.31,0.00050684,120]
[354461999,1740519090045,-500.0,0.00050684,120]
[354462000,1740519090054,-653.71,0.00050684,30]
[354462001,1740519090064,-1219.1,0.00050684,120]
[354462002,1740519090073,-500.0,0.00050684,120]
[354462003,1740519090083,-500.0,0.00050684,120]
[354462004,1740519090093,-505.04779368,0.00050684,120]
[354462005,1740519090103,-18715.62,0.00050684,120]
[354462006,1740519090112,-500.0,0.00050684,21]
[354462007,1740519090122,-500.0,0.00050684,120]
[354462008,1740519090132,-1421.63,0.00050684,120]
[354462009,1740519090142,-500.0,0.00050684,120]
[354462010,1740519090151,-500.0,0.00050684,120]
[354462011,1740519090161,-708.9,0.00050684,120]
[354462012,1740519090169,-510.4214426,0.00050684,120]
[354462013,1740519090179,-500.0,0.00050684,120]
[354462014,1740519090188,-1244.04,0.00050684,120]
[354462015,1740519090200,-9658.64,0.00050684,120]
[354462016,1740519090210,-527.79,0.00050684,120]
[354462017,1740519090219,-500.0,0.00050684,120]
[354462018,1740519090229,-3180.65,0.00050684,120]
[354462019,1740519090239,-2328.51,0.00050684,120]
[354462020,1740519090248,-500.0,0.00050684,120]
[354462021,1740519090258,-7440.29,0.00050684,120]
[354462022,1740519090268,-500.0,0.00050684,120]
[354462023,1740519090278,-1349.53,0.00050684,120]
[354462024,1740519090287,-500.0,0.00050684,120]
[354462025,1740519090296,-500.0,0.00050684,120]
[354462026,1740519090306,-500.29,0.00050684,120]
[354462027,1740519090315,-500.0,0.00050684,120]
[354462028,1740519090324,-500.0,0.00050684,120]
[354462029,1740519090334,-18480.01,0.00050684,120]
[354462030,1740519090343,-883.27,0.00050684,120]
[354462031,1740519090354,-500.0,0.00050684,120]
[354462032,1740519090364,-250.0,0.00050684,120]
[354462033,1740519090374,-1537.59,0.00050684,120]
[354462034,1740519090538,-500.0,0.00050684,120]
[354462035,1740519090548,-500.0,0.00050684,120]
[354462036,1740519090557,-3305.81,0.00050684,120]
[354462037,1740519090567,-1969.95,0.00050684,120]
[354462038,1740519090576,-500.0,0.00050684,120]
[354462039,1740519090586,-1538.91,0.00050684,120]
[354462040,1740519090595,-733.07,0.00050684,120]
[354462041,1740519090604,-2585.71,0.00050684,120]
[354462042,1740519090614,-500.0,0.00050684,120]
[354462043,1740519090625,-726.95,0.00050684,120]
[354462044,1740519090635,-528.98178322,0.00050684,120]
[354462045,1740519090645,-670.86,0.00050684,120]
[354462046,1740519090654,-500.0,0.00050684,120]
[354462047,1740519090665,-500.0,0.00050684,120]
[354462048,1740519090675,-5845.81,0.00050684,120]
[354462049,1740519090684,-590.64,0.00050684,120]
[354462050,1740519090695,-758.35141127,0.00050684,120]
[354463615,1740519502082,10000.0,0.00028,10]
[354463950,1740519517272,10000.0,0.00028,10]
[354465378,1740519584128,4999.0,0.00028,10]
[354466286,1740519634428,25000.0,0.00028,10]
[354466424,1740519681289,15000.0,0.00028,10]
[354466425,1740519804999,1014.24,0.00028,10]
[354466426,1740520167399,198.24228,0.00013699,2]
[354466472,1740520231954,-331.91042607,0.00030428,2]
[354466474,1740520231965,-232.60796387,0.00038356,30]
[354466478,1740520231994,-267.39203613,0.00038356,30]
[354466479,1740520232004,-300.0,0.00038609,5]
[354466481,1740520232015,-11337.5633374,0.0003861,2]
[354466483,1740520232024,-500.0,0.0003863,32]
[354466485,1740520232034,-500.0,0.00038904,34]
[354466487,1740520232045,-538.0,0.00039053,2]
[354466489,1740520232056,-1969.0,0.00039053,2]
[354466491,1740520232066,-2288.0,0.00039053,2]
[354466493,1740520232075,-396.0,0.00039053,2]
[354466496,1740520232086,-241.321003,0.00039649,2]
[354466498,1740520232095,-500.0,0.00039667,51]
[354466500,1740520232105,-376.91998768,0.00039736,2]
[354466502,1740520232115,-500.0,0.00039767,34]
[354466503,1740520232124,-500.0,0.00039867,13]
[354466505,1740520232133,-206.50070195,0.000399,8]
[354466507,1740520232143,-500.0,0.00039967,93]
[354466509,1740520232152,-500.0,0.00040067,95]
[354466511,1740520232162,-500.0,0.00040167,53]
[354466513,1740520232172,-500.0,0.00040267,31]
[354466515,1740520232185,-209.03155392,0.00040595,2]
[354466517,1740520232196,-500.0,0.00040667,19]
[354466519,1740520232207,-500.0,0.00040767,94]
[354466521,1740520232217,-500.0,0.00040867,104]
[354466523,1740520232228,-500.0,0.00040967,88]
[354466525,1740520232239,-500.0,0.00041267,76]
[354466529,1740520232250,-476.993,0.00041467,61]
[354466532,1740520232262,-500.0,0.00041467,65]
[354466535,1740520232273,-170.91,0.00041467,61]
[354466538,1740520232283,-500.0,0.00041567,42]
[354466541,1740520232294,-159.599696,0.000416,35]
[354466544,1740520232304,-500.0,0.00041667,110]
[354466547,1740520232314,-903.4,0.00041767,114]
[354466550,1740520232325,-396.0,0.00042053,2]
[354466554,1740520232335,-396.0,0.00045053,2]
[354466557,1740520232346,-721.0,0.000473,30]
[354466560,1740520232358,-3000.0,0.000477,6]
[354466563,1740520232369,-174.44733563,0.00047853,28]
[354466566,1740520232379,-631.32708509,0.00047953,2]
[354466569,1740520232393,-500.0,0.00047999,120]
[354466572,1740520232403,-500.0,0.00047999,2]
[354466576,1740520232414,-500.0,0.00047999,120]
[354466579,1740520232424,-500.0,0.00047999,120]
[354466582,1740520232437,-500.0,0.00047999,120]
[354466585,1740520232446,-500.0,0.00047999,120]
[354466588,1740520232456,-500.0,0.00047999,120]
[354466591,1740520232467,-500.0,0.00047999,120]
[354466594,1740520232477,-500.0,0.00047999,120]
[354466597,1740520232486,-500.0,0.00047999,120]
[354466600,1740520232496,-500.0,0.00047999,120]
[354466603,1740520232506,-500.0,0.00047999,120]
[354466606,1740520232515,-500.0,0.00047999,120]
[354466609,1740520232525,-500.0,0.00047999,120]
[354466612,1740520232534,-500.0,0.00047999,120]
[354466615,1740520232545,-356.88994927,0.00047999,120]
[354466618,1740520232556,-500.0,0.00047999,120]
[354466621,1740520232566,-500.0,0.00047999,120]
[354466624,1740520232577,-500.0,0.00047999,120]
[354466628,1740520232588,-425.62372396,0.00047999,120]
[354466631,1740520232598,-500.0,0.00047999,120]
[354466634,1740520232608,-500.0,0.00047999,2]
[354466637,1740520232618,-500.0,0.00047999,2]
[354466640,1740520232628,-500.0,0.00047999,2]
[354466643,1740520232637,-500.0,0.00047999,2]
[354466646,1740520232647,-500.0,0.00047999,2]
[354466649,1740520232656,-500.0,0.00047999,2]
[354466652,1740520232666,-500.0,0.00047999,2]
[354466655,1740520232675,-500.0,0.00047999,2]
[354466658,1740520232686,-500.0,0.00047999,2]
[354466661,1740520232697,-500.0,0.00047999,2]
[354466664,1740520232707,-500.0,0.00047999,2]
[354466666,1740520232716,-500.0,0.00047999,2]
[354466668,1740520232726,-500.0,0.00047999,2]
[354466670,1740520232737,-500.0,0.00047999,2]
[354466672,1740520232758,-500.0,0.00047999,2]
[354466674,1740520232778,-500.0,0.00047999,2]
[354466676,1740520232799,-500.0,0.00047999,2]
[354466678,1740520232812,-500.0,0.00047999,2]
[354466680,1740520232823,-500.0,0.00047999,2]
[354466682,1740520232834,-500.0,0.00047999,2]
[354466684,1740520232845,-543.22400676,0.00047999,2]
[354466686,1740520232855,-500.0,0.00047999,2]
[354466688,1740520232867,-500.0,0.00047999,2]
[354466690,1740520232879,-500.0,0.00047999,2]
[354466692,1740520232890,-500.0,0.00047999,2]
[354466695,1740520232901,-500.0,0.00047999,2]
[354466696,1740520232911,-500.0,0.00047999,2]
[354466699,1740520232923,-500.0,0.00047999,2]
[354466700,1740520232936,-500.0,0.00047999,2]
[354466703,1740520232947,-500.0,0.00047999,2]
[354466704,1740520232956,-500.0,0.00047999,2]
[354466706,1740520232970,-500.0,0.00047999,2]
[354466708,1740520232982,-500.0,0.00047999,2]
[354466710,1740520232993,-500.0,0.00047999,2]
[354466713,1740520233008,-500.0,0.00047999,2]
[354466714,1740520233019,-500.0,0.00047999,2]
[354466717,1740520233030,-500.0,0.00047999,120]
[354466719,1740520233045,-500.0,0.00047999,120]
[354466721,1740520233054,-500.0,0.00047999,120]
[354466723,1740520233064,-500.0,0.00047999,120]
[354466725,1740520233075,-500.0,0.00047999,120]
[354466727,1740520233086,-500.0,0.00047999,120]
[354466728,1740520233099,-500.0,0.00047999,120]
[354466730,1740520233108,-500.0,0.00047999,120]
[354466732,1740520233121,-500.0,0.00047999,120]
[354466735,1740520233131,-500.0,0.00047999,120]
[354466737,1740520233141,-500.0,0.00047999,120]
[354466739,1740520233151,-500.0,0.00047999,120]
[354466740,1740520233160,-500.0,0.00047999,120]
[354466742,1740520233169,-500.0,0.00047999,120]
[354466745,1740520233179,-500.0,0.00047999,120]
[354466746,1740520233189,-500.0,0.00047999,120]
[354466748,1740520233199,-162300.36616822,0.00048,120]
[354466752,1740520233225,-439.565,0.00048,120]
[354466754,1740520233237,-153972.82883178,0.00048,120]
[354466756,1740520233247,-152.36849344,0.00048,10]
[354466758,1740520233257,-500.0,0.00048,10]
[354466760,1740520233266,-500.0,0.00048,10]
[354466763,1740520233276,-500.0,0.00048,10]
[354466764,1740520233285,-396.0,0.00048053,2]
[354466767,1740520233295,-170.06417721,0.0004816,10]
[354466769,1740520233304,-312.21423528,0.0004816,10]
[354466770,1740520233314,-500.0,0.000482,7]
[354466772,1740520233323,-500.0,0.000482,10]
[354466775,1740520233333,-500.0,0.000482,2]
[354466777,1740520233343,-424.0,0.00048315,120]
[354466779,1740520233352,-500.0,0.00048315,120]
[354466781,1740520233362,-500.0,0.00048315,120]
[354466783,1740520233372,-500.0,0.00048315,120]
[354466785,1740520233381,-500.0,0.00048315,120]
[354466787,1740520233390,-500.0,0.00048315,120]
[354466788,1740520233400,-500.0,0.00048315,120]
[354466790,1740520233410,-631.32708506,0.00048337,2]
[354466792,1740520233419,-500.0,0.00048399,120]
[354466794,1740520233429,-500.0,0.00048399,120]
[354466796,1740520233439,-10000.0,0.000485,100]
[354466798,1740520233449,-500.0,0.00048628,18]
[354466800,1740520233460,-3000.0,0.000487,14]
[354466802,1740520233469,-631.32708506,0.00048721,2]
[354466804,1740520233479,-12552.10921837,0.00048799,120]
[354466807,1740520233495,-7739.77078163,0.00048799,120]
[354466809,1740520233505,-43218.38182613,0.000488,2]
[354467185,1740520237821,-223.68,0.0004799,2]
[354467186,1740520237831,-223.68,0.0004799,2]
[354467187,1740520237840,-223.68,0.0004799,2]
[354467188,1740520237850,-223.68,0.0004799,2]
[354467189,1740520237860,-5526.72482975,0.000488,2]
[354467190,1740520237872,-596.59801914,0.000488,2]
[354467191,1740520237883,-676.17413157,0.000488,2]
[354467192,1740520237899,-223.68,0.0004799,2]
[354467193,1740520237909,-16378.08558579,0.000488,2]
[354467194,1740520237920,-674.62973335,0.000488,2]
[354467195,1740520237933,-6827.18603568,0.000488,2]
[354467196,1740520237948,-17051.45957645,0.000488,2]
[354467197,1740520237973,-2050.76026214,0.000488,2]
[354467198,1740520237985,-151.0,0.000491,24]
[354467199,1740520237995,-631.32708506,0.00049105,2]
[354467200,1740520238005,-151.0,0.000492,24]
[354467201,1740520238016,-151.0,0.000492,29]
[354467202,1740520238025,-151.0,0.000492,22]
[354467203,1740520238035,-151.0,0.000492,24]
[354467204,1740520238044,-151.0,0.000492,30]
[354467205,1740520238055,-151.0,0.000493,26]
[354467206,1740520238064,-151.0,0.000493,30]
[354467207,1740520238074,-151.0,0.000493,26]
[354467208,1740520238083,-151.0,0.000493,23]
[354467209,1740520238092,-151.0,0.000493,27]
[354467210,1740520238102,-151.0,0.000493,28]
[354467211,1740520238111,-291.84,0.0004931,120]
[354467212,1740520238120,-204.46669405,0.00049314,120]
[354467213,1740520238130,-500.0,0.00049314,120]
[354467214,1740520238139,-500.0,0.00049314,120]
[354467215,1740520238149,-500.0,0.00049314,31]
[354467216,1740520238159,-500.0,0.00049314,120]
[354467217,1740520238168,-197.03237634,0.00049314,120]
[354467218,1740520238177,-500.0,0.00049314,31]
[354467219,1740520238187,-500.0,0.00049314,120]
[354467220,1740520238197,-340.47875755,0.00049314,120]
[354467221,1740520238206,-500.0,0.00049314,120]
[354467222,1740520238215,-500.0,0.00049314,120]
[354467223,1740520238225,-500.0,0.00049314,31]
[354467224,1740520238235,-500.0,0.00049314,120]
[354467225,1740520238244,-500.0,0.00049314,120]
[354467226,1740520238254,-245.03481247,0.00049314,31]
[354467227,1740520238263,-500.0,0.00049314,120]
[354467228,1740520238272,-500.0,0.00049314,120]
[354467229,1740520238282,-450.0,0.00049314,120]
[354467230,1740520238291,-500.0,0.00049314,120]
[354467231,1740520238300,-500.0,0.00049314,120]
[354467233,1740520238310,-500.0,0.00049314,120]
[354467234,1740520238320,-500.0,0.00049314,120]
[354467235,1740520238329,-210.4680446,0.00049314,120]
[354467236,1740520238339,-1004.05,0.00049314,120]
[354467237,1740520238349,-500.0,0.00049315,120]
[354467238,1740520238358,-500.77339555,0.00049315,120]
[354467239,1740520238368,-500.0,0.00049315,120]
[354467240,1740520238378,-500.0,0.00049315,120]
[354467241,1740520238387,-514.47285505,0.00049315,120]
[354467242,1740520238397,-277.3124148,0.00049315,120]
[354467243,1740520238406,-500.0,0.00049315,120]
[354467244,1740520238416,-503.23080828,0.00049315,120]
[354467245,1740520238425,-500.92102813,0.00049315,30]
[354467246,1740520238436,-500.0,0.00049315,120]
[354467247,1740520238446,-500.0,0.00049315,120]
[354467248,1740520238456,-500.0,0.00049315,120]
[354467249,1740520238465,-500.0,0.00049315,120]
[354467250,1740520238474,-500.0,0.00049315,120]
[354467251,1740520238484,-403.15620718,0.00049315,120]
[354467252,1740520238494,-500.0,0.00049315,120]
[354467253,1740520238504,-500.0,0.00049315,120]
[354467254,1740520238514,-500.0,0.00049315,120]
[354467255,1740520238524,-500.0,0.00049315,120]
[354467256,1740520238534,-873.71,0.00049315,120]
[354467257,1740520238544,-500.0,0.00049315,120]
[354467258,1740520238554,-503.54702989,0.00049315,120]
[354467259,1740520238564,-551.61,0.00049315,120]
[354467260,1740520238574,-500.0,0.00049315,120]
[354467261,1740520238584,-500.0,0.00049315,120]
[354467262,1740520238594,-500.0,0.00049315,120]
[354467263,1740520238603,-753.95,0.00049315,120]
[354467264,1740520238613,-500.0,0.00049315,120]
[354467265,1740520238622,-500.0,0.00049315,120]
[354467266,1740520238631,-500.0,0.00049315,120]
[354467267,1740520238641,-675.97,0.00049315,120]
[354467268,1740520238651,-500.0,0.00049315,120]
[354467270,1740520238660,-500.0,0.00049315,120]
[354467272,1740520238669,-613.24,0.00049315,120]
[354467274,1740520238679,-500.0,0.00049315,120]
[354467276,1740520238689,-500.0,0.00049315,120]
[354467278,1740520238699,-500.0,0.00049315,120]
[354467280,1740520238709,-500.0,0.00049315,120]
[354467282,1740520238719,-500.0,0.00049315,120]
[354467284,1740520238729,-500.0,0.00049315,120]
[354467287,1740520238740,-500.0,0.00049315,20]
[354467289,1740520238751,-500.0,0.00049315,20]
[354467290,1740520238761,-500.0,0.00049315,20]
[354467293,1740520238772,-569.727861,0.00049315,20]
[354467295,1740520238782,-533.95,0.00049315,120]
[354467296,1740520238792,-500.0,0.00049315,120]
[354467298,1740520238803,-500.0,0.00049315,120]
[354467300,1740520238813,-500.0,0.00049315,120]
[354467302,1740520238822,-500.0,0.00049315,120]
[354467304,1740520238832,-781.22,0.00049315,120]
[354467306,1740520238842,-500.0,0.00049315,120]
[354467309,1740520238852,-500.0,0.00049315,120]
[354467311,1740520238861,-500.0,0.00049315,120]
[354467312,1740520238871,-500.0,0.00049315,120]
[354467314,1740520238882,-505.82020737,0.00049315,120]
[354467316,1740520238891,-500.0,0.00049315,120]
[354467318,1740520238901,-500.0,0.00049315,120]
[354467320,1740520238910,-500.0,0.00049315,120]
[354467322,1740520238919,-500.0,0.00049315,120]
[354467323,1740520238930,-2408.81,0.00049315,120]
[354467325,1740520238940,-500.0,0.00049315,120]
[354467327,1740520238949,-591.89,0.00049315,120]
[354467328,1740520238958,-500.0,0.00049315,120]
[354467329,1740520238970,-500.0,0.00049315,120]
[354467330,1740520238979,-500.0,0.00049315,120]
[354467332,1740520238989,-500.0,0.00049315,120]
[354467334,1740520238998,-500.0,0.00049315,120]
[354467336,1740520239008,-509.92622314,0.00049315,120]
[354467338,1740520239018,-500.0,0.00049315,120]
[354467340,1740520239028,-614.1,0.00049315,120]
[354467342,1740520239037,-769.08,0.00049315,120]
[354467345,1740520239049,-500.0,0.00049315,120]
[354467347,1740520239061,-500.0,0.00049315,120]
[354467349,1740520239070,-545.42,0.00049315,120]
[354467351,1740520239080,-500.0,0.00049315,120]
[354467353,1740520239089,-575.66,0.00049315,120]
[354467355,1740520239099,-500.0,0.00049315,120]
[354467356,1740520239109,-500.0,0.00049315,120]
[354467358,1740520239118,-500.0,0.00049315,120]
[354467360,1740520239128,-500.0,0.00049315,120]
[354467361,1740520239137,-500.0,0.00049315,120]
[354467362,1740520239146,-500.0,0.00049315,120]
[354467364,1740520239156,-500.0,0.00049315,120]
[354467366,1740520239165,-570.75,0.00049315,120]
[354467368,1740520239175,-500.0,0.00049315,120]
[354467370,1740520239188,-500.0,0.00049315,120]
[354467372,1740520239197,-399.04593153,0.00049315,120]
[354467374,1740520239206,-500.0,0.00049315,120]
[354467377,1740520239216,-508.8795629,0.00049315,120]
[354467379,1740520239225,-500.0,0.00049315,120]
[354467381,1740520239234,-500.0,0.00049315,120]